Cogmind - Beta 9.6 @@@ ROGUE MODE // 2020.06.22 @ 08:18:43 Player: Demise Result: Destroyed by G-50 Soldier with Heavy Laser Performance ------------- Evolutions (4) 2000 Regions Visited (8) 1600 Robots Destroyed (143) 715 Value Destroyed (4184) 4184 Prototype IDs (35) 700 Alien Tech Used (0) 0 Bonus (916) 916 TOTAL SCORE: 10115 Bonus ------- High Alert Combat Kills 837 Aligned with FarCom 300 Friendly Fire -221 Cogmind --------- Core Integrity 0/850 Matter 300/300 Energy 100/100 System Corruption 5% Temperature Cool (9) Movement Core (1650) Ox32 Location -6/Factory Parts ------- > --- POWER (1) -------- (None) > --- PROPULSION (2) --- (None) > --- UTILITY (8) ------ High-capacity Storage Unit High-capacity Storage Unit High-capacity Storage Unit Advanced Signal Interpreter Improved Terrain Scan Processor Advanced Targeting Computer Improved Transmission Jammer > --- WEAPON (4) ------- Scythe > --- INVENTORY (28) --- Improved Heat Sink Improved Heat Sink High-capacity Storage Unit High-capacity Storage Unit High-capacity Storage Unit High-capacity Battery (400) Large Matter Pod (150) Advanced Visual Processing Unit Advanced Sensor Array Long-range Terrain Scanner Improved Targeting Computer Weapon Cycler Improved Light Armor Plating Improved Light Armor Plating Focal Shield Recalibrator Heavy EM Shotgun AWS/Autocannon Proton Missile Launcher Mini Grenade Launcher Peak State ------------ > --- POWER ------------ Angular Momentum Engine > --- PROPULSION ------- Armored Wheel Armored Wheel > --- UTILITY ---------- High-capacity Storage Unit High-capacity Storage Unit High-capacity Storage Unit Advanced Signal Interpreter Long-range Terrain Scanner Terrain Scan Processor Advanced Targeting Computer Advanced Targeting Computer > --- WEAPON ----------- Enhanced Autogun Enhanced Autogun Enhanced Autogun Enhanced Autogun > --- INVENTORY -------- Armored Wheel Armored Wheel Armored Wheel Improved Heat Sink High-capacity Storage Unit High-capacity Storage Unit High-capacity Storage Unit High-capacity Battery Large Matter Pod Advanced Visual Processing Unit Weapon Cycler Hardened Medium Armor Plating Hardened Medium Armor Plating Improved Light Armor Plating Recalibrator Heavy EM Shotgun Advanced Beam Rifle Advanced Beam Cannon Enhanced Autogun Advanced Assault Cannon AWS/Autocannon Proton Missile Launcher Mini Grenade Launcher Scythe [Rating: 52] Favorites ----------- Power Heavy Ion Engine Engine Heavy Ion Engine Power Core Light Nuclear Core Propulsion Wheel Treads Light Treads Leg Aluminum Leg Wheel Wheel Utility High-capacity Storage Unit Device Heat Sink Storage High-capacity Storage Unit Processor Advanced Targeting Computer Protection Improved Light Armor Plating Weapon Enhanced Autogun Energy Gun Beamcaster Energy Cannon Improved EM Pulse Cannon Ballistic Gun Enhanced Autogun Ballistic Cannon Gauss Cannon Launcher Grenade Launcher Special Weapon Mining Laser Slashing Weapon Scythe Build | -11 -10 -10 -10 -9 -8 -8 -8 -6 ------- Run | Scr Mat Min Exi Min Mat Sto Rec Fac Slots Evolved 8 | . . . . . 4 . . 4 Power . | . . . . . . . . . Propulsion . | . . . . . . . . . Utility 6 | . . . . . 2 . . 4 Weapon 2 | . . . . . 2 . . . Parts Attached 127 | 3 11 1 1 11 40 19 1 40 Power 21 | . 4 1 . 1 6 3 . 6 Engine 16 | . 4 1 . 1 3 1 . 6 Core 5 | . . . . . 3 2 . . Reactor . | . . . . . . . . . Propulsion 27 | 2 2 . 1 5 7 3 . 7 Treads 10 | . . . 1 . 4 3 . 2 Leg . | . . . . . . . . . Wheel 17 | 2 2 . . 5 3 . . 5 Hover . | . . . . . . . . . Flight . | . . . . . . . . . Utility 31 | 1 2 . . . 10 4 1 13 Device 9 | . . . . . 3 . . 6 Storage 8 | 1 2 . . . 3 1 1 . Processor 7 | . . . . . 2 1 . 4 Hackware . | . . . . . . . . . Protection 7 | . . . . . 2 2 . 3 Artifact . | . . . . . . . . . Weapon 48 | . 3 . . 5 17 9 . 14 Energy Gun 7 | . . . . . 4 . . 3 Energy Cannon 9 | . . . . 4 4 . . 1 Ballistic Gun 20 | . 3 . . . 5 7 . 5 Ballistic Cannon 4 | . . . . 1 2 . . 1 Launcher 2 | . . . . . 1 . . 1 Special Weapon 2 | . . . . . 1 1 . . Impact Weapon . | . . . . . . . . . Slashing Weapon 4 | . . . . . . 1 . 3 Piercing Weapon . | . . . . . . . . . Special Melee Weapon . | . . . . . . . . . Unidentified Prototypes 3 | . . . . . 1 2 . . Parts Lost 52 | . 3 . 2 . 18 3 . 26 Power 11 | . 1 . . . 4 1 . 5 Propulsion 13 | . 1 . . . 4 1 . 7 Utility 6 | . . . . . 1 . . 5 Weapon 22 | . 1 . 2 . 9 1 . 9 Highest Loss Streak 10 | . 2 . 2 . 10 2 . 10 Average Slot Usage (%) 92 | . 99 100 98 100 92 88 100 84 Engine 7 | . 13 14 14 14 7 3 9 2 Treads 6 | . . . 4 12 2 17 18 1 Wheel 11 | . 28 28 23 15 14 . . 8 Device 3 | . . . . . 7 . . 6 Storage 21 | . 28 28 28 28 18 18 23 20 Processor 9 | . . . . . 8 9 9 21 Protection 2 | . . . . . 1 8 3 2 Energy Gun 1 | . . . . . 2 . . 2 Energy Cannon 4 | . . . . 18 12 . . . Ballistic Gun 17 | . 28 28 26 . 6 24 36 11 Ballistic Cannon 2 | . . . . 9 7 . . 1 Naked Turns . | . . . . . . . . . Heaviest Build 128 | 16 41 41 41 56 111 87 116 128 Greatest Support 48 | 20 20 20 20 20 40 40 40 48 Greatest Overweight (x) 32 | . 2 2 4 5 24 4 2 32 Average Overweight (x) 3 | . 1 2 2 3 6 1 2 4 Largest Inventory Capacity 28 | 8 16 16 16 16 20 20 28 28 Average Capacity 20 | 7 15 16 16 16 18 20 24 28 Most Carried 28 | 8 16 16 16 16 20 20 28 28 Average Carried 19 | 6 13 15 15 15 17 19 24 24 Final Capacity 28 | 8 16 16 16 16 20 20 28 28 Final Carried 28 | 8 16 16 16 16 19 20 28 22 Class Distribution -------------------- 28% | Mutant 23% | Hauler-Mutant 14% | Hauler-Gunner 11% | Scavenger-Gunner 9% | Commander-Gunner 4% | Scavenger-Mutant 3% | Commander-Skirmisher Dominant Class ---------------- Mutant | -10/Materials Mutant | -10/Mines Mutant | -10/Exiles Mutant | -9/Mines Scavenger-Gunner | -8/Materials Hauler-Mutant | -8/Storage Commander-Gunner | -8/Recycling Hauler-Mutant | -6/Factory Resources | -11 -10 -10 -10 -9 -8 -8 -8 -6 ----------- Run | Scr Mat Min Exi Min Mat Sto Rec Fac Matter Collected 3708 | 260 382 101 . 225 1109 642 22 967 Remotely . | . . . . . . . . . Salvage Created 5057 | 167 419 85 . 286 1732 837 5 1526 Parts 308 | 17 34 6 . 22 106 42 2 79 Haulers Intercepted 9 | . 1 . . . 4 3 . 1 Recyclers Shooed 3 | . 1 . . . . . . 2 Parts Field Recycled . | . . . . . . . . . Retrieved Matter . | . . . . . . . . . Parts Self-Destructed . | . . . . . . . . . Prevented . | . . . . . . . . . Kills | -11 -10 -10 -10 -9 -8 -8 -8 -6 ------- Run | Scr Mat Min Exi Min Mat Sto Rec Fac Combat Hostiles Destroyed 104 | . 14 2 . 7 39 13 1 28 Melee 3 | . . . . . . . . 3 Guns 59 | . 13 2 . . 11 13 1 19 Cannons 28 | . . . . 7 20 . . 1 AOE 14 | . 1 . . . 8 . . 5 Classes Destroyed 16 | 2 6 . . 2 3 . 1 2 Worker 4 | . . . . 2 2 . . . Builder 7 | . 1 . . . 3 . . 3 Tunneler 7 | 5 . . . 2 . . . . Hauler 9 | . 1 . . . 4 3 . 1 Recycler 2 | 1 . . . . 1 . . . Operator 2 | . 1 . . . . . . 1 Drone 1 | . . . . . . . 1 . Watcher 7 | . 3 . . . 3 1 . . Swarmer 34 | . 12 . . 3 12 . . 7 Grunt 40 | . 2 2 . 3 16 6 . 11 Brawler 1 | . . . . . 1 . . . Duelist 2 | . . . . 1 . . . 1 Protector 1 | . . . . . . . . 1 Sentry 20 | . . . . . 9 7 . 4 Hunter 3 | . . . . . 1 . . 2 Programmer 2 | . . . . . . . . 2 Thug 1 | . . . . . 1 . . . Best Kill Streak 10 | 4 5 2 . 3 10 4 1 6 Combat Bots Only 6 | . 5 2 . 3 6 3 1 5 Max Kills in Single Turn 6 | 1 2 1 . 1 4 2 1 6 Gunslinging 1 | . 1 . . . . 1 . . Exploded 5 | . 1 . . . 2 . . 5 Melee 1 | . . . . . . . . 1 Uniques/NPCs Destroyed . | . . . . . . . . . Combat | -11 -10 -10 -10 -9 -8 -8 -8 -6 -------- Run | Scr Mat Min Exi Min Mat Sto Rec Fac Damage Taken 9299 | . 468 61 232 374 2334 1134 . 4696 Core 1566 | . 58 10 . 116 384 141 . 857 Absorbed by Shields 14 | . . . . . . . . 14 Core Remaining (%) 43 | 100 . . . 26 . . 4 . Volleys Fired 291 | 10 58 6 1 21 78 46 1 70 Largest 4 | 2 2 2 2 2 4 4 4 4 Hottest 252 | 60 40 40 40 125 252 100 98 159 Shots Fired 761 | 20 116 12 2 41 229 106 4 231 Gun 551 | 20 116 12 2 . 85 105 4 207 Cannon 200 | . . . . 41 135 . . 24 Launcher 7 | . . . . . 7 . . . Special 3 | . . . . . 2 1 . . Kinetic 591 | 10 116 12 2 18 127 105 4 197 Thermal 92 | 10 . . . . 53 1 . 28 Explosive 7 | . . . . . 7 . . . Electromagnetic 71 | . . . . 23 42 . . 6 Robot Hit Streak 27 | 8 9 6 3 5 10 27 2 25 Robot Miss Streak 5 | 1 4 2 . 2 5 4 3 4 Penetration Max . | . . . . . . . . . Secondary Targets 9 | . 3 . . . . 2 . 4 Max Gunslinging Chain 1 | . 1 . . . . 1 . 1 Autonomous 6 | . . . . . 6 . . . Shots Hit Robots 493 | 12 66 7 2 24 127 75 2 178 Core Hits 239 | 7 25 5 1 13 84 29 1 74 Critical Hits 15 | . 3 . . 4 4 1 . 3 Critical Kills 5 | . 1 . . 1 2 . . 1 Critical Parts Destroyed 10 | . 2 . . 3 2 1 . 2 Melee Attacks 33 | . . . . . . 5 . 28 Impact . | . . . . . . . . . Slashing 33 | . . . . . . 5 . 28 Piercing . | . . . . . . . . . Sneak Attacks 2 | . . . . . . . . 2 Combat Hostiles . | . . . . . . . . . Follow-up Attacks . | . . . . . . . . . Damage Inflicted 11608 | 142 804 98 25 649 3924 1168 29 4769 Guns 5718 | 142 804 98 25 . 889 1138 29 2593 Cannons 2964 | . . . . 632 2014 . . 318 Explosions 2087 | . . . . . 997 . . 1090 Melee 762 | . . . . . . . . 762 Ramming 77 | . . . . 17 24 30 . 6 Kinetic 6347 | 55 804 98 25 240 1668 1138 29 2290 Thermal 2321 | 87 . . . . 642 . . 1592 Explosive 997 | . . . . . 997 . . . Electromagnetic 1104 | . . . . 392 593 . . 119 Impact . | . . . . . . . . . Slashing 762 | . . . . . . . . 762 Piercing . | . . . . . . . . . Highest Corruption 5 | . 1 1 3 3 2 2 2 5 Average Corruption 1 | . 1 1 1 3 2 2 2 2 Corruption Purged . | . . . . . . . . . Effects 63 | . 2 . 1 10 19 9 8 14 Message Errors 23 | . 2 . 1 3 9 2 2 4 Matter Fused 3 | . . . . 2 . . . 1 Heat Flow Errors 10 | . . . . 2 2 1 2 3 Energy Discharges 8 | . . . . 1 2 2 3 . Data Loss (minor) 8 | . . . . . 3 2 1 2 Targeting Errors 9 | . . . . 2 1 2 . 4 Weapon Failures 2 | . . . . . 2 . . . Overload Shots . | . . . . . . . . . Overflow Damage 491 | . . . . . 72 14 . 405 Projectiles 51 | . . . . . 51 . . . Explosions 341 | . . . . . 21 . . 320 Melee 99 | . . . . . . 14 . 85 Knockbacks 12 | . . . . 1 8 . . 3 Impact 1 | . . . . . 1 . . . Kinetic 11 | . . . . 1 7 . . 3 Secondary . | . . . . . . . . . Self-Inflicted Damage 378 | . . . . . 106 . . 272 Shots 7 | . . . . . 4 . . 3 Rammed 6 | . . . . 1 3 1 . 1 Targets Rammed 6 | . . . . 1 3 1 . 1 Kicked . | . . . . . . . . . Crushed . | . . . . . . . . . Highest Temperature 648 | . . 2 . 378 495 299 141 648 Average Temperature 148 | . . 2 . 136 141 101 61 189 Received Heat Transfer 2721 | . 66 33 . 96 909 450 . 1167 Effects 28 | . . . . 4 10 . . 14 Shutdowns 4 | . . . . 1 1 . . 2 Energy Bleed 3 | . . . . 1 1 . . 1 Interference 8 | . . . . 2 4 . . 2 Matter Decay 3 | . . . . . 2 . . 1 Short Circuit 5 | . . . . . 2 . . 3 Damage (minor) 2 | . . . . . . . . 2 Damage (major) 1 | . . . . . . . . 1 Damage (core) 2 | . . . . . . . . 2 Siege Activations . | . . . . . . . . . Robots Corrupted . | . . . . . . . . . Combat Hostiles . | . . . . . . . . . Parts Fried 8 | . 1 . . 3 2 2 . . Impact Corruptions 2 | . . . . . . 2 . . Robots Melted . | . . . . . . . . . Combat Hostiles . | . . . . . . . . . Parts Melted 4 | . . . . . . . . 4 Heat Transferred 2897 | 200 . . . . 1147 . . 1550 Parts Sabotaged . | . . . . . . . . . Parts Stolen . | . . . . . . . . . Parts Stripped . | . . . . . . . . . Power Chain Reactions . | . . . . . . . . . Missiles Intercepted . | . . . . . . . . . Alert | -11 -10 -10 -10 -9 -8 -8 -8 -6 ------- Run | Scr Mat Min Exi Min Mat Sto Rec Fac Peak Influence 1198 | 30 360 156 . 170 516 332 398 1198 Average Influence 398 | 16 213 154 . 60 246 184 250 1077 Maximum Alert Level 4 | . 1 . . . 2 1 1 4 Low Security (%) 37 | 100 33 100 . 100 28 61 35 . Level 1 39 | . 66 . . . 66 38 64 . Level 2 1 | . . . . . 5 . . . Level 3 13 | . . . . . . . . 60 Level 4 8 | . . . . . . . . 39 Level 5 . | . . . . . . . . . High Security . | . . . . . . . . . Max Security . | . . . . . . . . . Squads Dispatched 27 | . 3 . . 1 7 3 . 13 Investigation 10 | . 2 . . 1 1 3 . 3 Extermination 2 | . . . . . . . . 2 Reinforcement 8 | . 1 . . . 3 . . 4 Assault 2 | . . . . . . . . 2 Garrison 5 | . . . . . 3 . . 2 Intercept . | . . . . . . . . . Construction Impeded 2 | . . . . . . . . 2 Haulers Reinforced . | . . . . . . . . . Stealth | -11 -10 -10 -10 -9 -8 -8 -8 -6 --------- Run | Scr Mat Min Exi Min Mat Sto Rec Fac Distress Signals 4 | . . . . . 3 1 . . Communications Jammed . | . . . . . . . . . Distress Signals . | . . . . . . . . . Times Spotted 188 | . 23 2 3 10 64 21 24 41 Peak Tracking Total 11 | . 5 2 11 4 10 3 6 8 Tactical Retreats 25 | . 3 . 1 1 10 3 . 7 Traps | -11 -10 -10 -10 -9 -8 -8 -8 -6 ------- Run | Scr Mat Min Exi Min Mat Sto Rec Fac Traps Triggered 7 | . 3 . . . 1 2 . 1 Indirectly . | . . . . . . . . . Trap Hack Attempts . | . . . . . . . . . Triggered . | . . . . . . . . . Disarmed . | . . . . . . . . . Reprogrammed . | . . . . . . . . . Reused . | . . . . . . . . . Traps Extracted . | . . . . . . . . . Installed . | . . . . . . . . . Triggered . | . . . . . . . . . Exploded 1 | . . . 1 . . . . . Machines | -11 -10 -10 -10 -9 -8 -8 -8 -6 ---------- Run | Scr Mat Min Exi Min Mat Sto Rec Fac Machines Disabled 13 | . . . . . 1 3 2 7 Max in Single Turn 6 | . . . . . 1 1 . 6 Garrison Access 1 | . . . . . . . . 1 Machines Sabotaged . | . . . . . . . . . Garrisons Compromised . | . . . . . . . . . Overloaded Fab Kills . | . . . . . . . . . Fab Network Shutdowns . | . . . . . . . . . Hacking | -11 -10 -10 -10 -9 -8 -8 -8 -6 --------- Run | Scr Mat Min Exi Min Mat Sto Rec Fac Machines Accessed 45 | . 9 1 2 1 11 6 11 4 Terminals 23 | . 7 1 . . 7 3 5 . Fabricators 1 | . . . . . . . . 1 Repair Stations 2 | . . . . . 1 1 . . Recycling Units 11 | . 2 . . . 1 1 6 1 Scanalyzers 3 | . . . . . 2 . . 1 Garrison Access 2 | . . . . . . 1 . 1 Total Hacks 116 | . 29 3 2 1 36 16 21 8 Successful 68 | . 15 1 2 1 26 9 12 2 Failed 48 | . 14 2 . . 10 7 9 6 Catastrophic 10 | . 1 . . . 1 1 3 4 Database Lockouts . | . . . . . . . . . Manual 81 | . 27 3 1 . 21 13 14 2 Terminals 79 | . 27 3 . . 24 10 15 . Fabricators 1 | . . . . . . . . 1 Repair Stations 4 | . . . . . 2 2 . . Recycling Units 13 | . 2 . . . 2 1 6 2 Scanalyzers 11 | . . . . . 8 . . 3 Garrison Access 5 | . . . . . . 3 . 2 Terminal Hacks 20 | . 6 1 2 1 5 . 5 . Record 1 | . . . 1 . . . . . Part Schematic 7 | . 3 . . . 1 . 3 . Robot Analysis 1 | . . . . . . . 1 . Prototype ID Bank 3 | . 1 . . . 1 . 1 . Open Door 1 | . . . . 1 . . . . Unreport Threat 2 | . . . . . 2 . . . Locate Traps 3 | . 2 1 . . . . . . Zone Layout 1 | . . . . . 1 . . . EX-Prototype ID Bank 1 | . . . 1 . . . . . Fabricator Hacks 1 | . . . . . . . . 1 Build 1 | . . . . . . . . 1 Repair Station Hacks 4 | . . . . . 2 2 . . Scan Component 2 | . . . . . 1 1 . . Repair 2 | . . . . . 1 1 . . Recycling Unit Hacks 1 | . . . . . 1 . . . Recycle Component 1 | . . . . . 1 . . . Scanalyzer 9 | . . . . . 8 . . 1 Insert Component 7 | . . . . . 6 . . 1 Analyze 2 | . . . . . 2 . . . Garrison Access Hacks . | . . . . . . . . . Unauthorized Hacks 33 | . 9 . . . 10 7 7 . Terminals 23 | . 7 . . . 9 6 1 . Track 9 | . 2 . . . 4 2 1 . Botnet 10 | . 4 . . . 4 2 . . Operators 4 | . 1 . . . 1 2 . . Fabricators . | . . . . . . . . . Repair Stations . | . . . . . . . . . Recycling Units 10 | . 2 . . . 1 1 6 . Tunnel 10 | . 2 . . . 1 1 6 . Scanalyzers . | . . . . . . . . . Garrison Access . | . . . . . . . . . Data Cores Recovered . | . . . . . . . . . Used . | . . . . . . . . . Hacking Detections 28 | . 7 1 . . 8 4 5 3 Full Trace Events 8 | . 1 . . . . 1 3 3 Feedback Events . | . . . . . . . . . Feedback Blocked . | . . . . . . . . . Robot Schematics Acquired . | . . . . . . . . . Robots Built . | . . . . . . . . . Matter . | . . . . . . . . . Time . | . . . . . . . . . Total Robot Build Rating . | . . . . . . . . . Part Schematics Acquired 9 | . 3 . . . 3 . 3 . Parts Built . | . . . . . . . . . Matter 234 | . . . . . . . . 234 Time 117 | . . . . . . . . 117 Total Part Build Rating . | . . . . . . . . . Parts Repaired 2 | . . . . . 1 1 . . Time 82 | . . . . . 44 38 . . Parts Recycled 1 | . . . . . 1 . . . Recycled Matter . | . . . . . . . . . Retrieved Matter . | . . . . . . . . . Retrieved Components . | . . . . . . . . . Parts Scanalyzed 2 | . . . . . 2 . . . Part Schematics Acquired 2 | . . . . . 2 . . . Parts Damaged . | . . . . . . . . . Bothacking | -11 -10 -10 -10 -9 -8 -8 -8 -6 ------------ Run | Scr Mat Min Exi Min Mat Sto Rec Fac Used RIF Installer . | . . . . . . . . . Robots Hacked . | . . . . . . . . . Non-combat . | . . . . . . . . . Combat . | . . . . . . . . . Robot Hacks Applied . | . . . . . . . . . Relay Couplers Released 3 | . . . . . . . . 3 Machine Destruction 3 | . . . . . . . . 3 Robots Rewired 10 | . . . . . . . 10 . Allies Hacked . | . . . . . . . . . Hacks Repelled . | . . . . . . . . . Allies | -11 -10 -10 -10 -9 -8 -8 -8 -6 -------- Run | Scr Mat Min Exi Min Mat Sto Rec Fac Total Allies 10 | . . . . . . . 10 . Largest Group 10 | . . . . . . . 10 6 Highest-Rated Group 131 | . . . . . . . 131 90 Highest-Rated Ally 24 | . . . . . . . 24 24 Total Orders 1 | . . . . . . . . 1 GOTO 1 | . . . . . . . . 1 Ally Attacks 221 | . . . . . . . 215 6 Total Damage 1428 | . . . . . . . 1355 73 Kills 41 | . . . . . . . 39 2 Allies Corrupted . | . . . . . . . . . Allies Melted . | . . . . . . . . . Intel | -11 -10 -10 -10 -9 -8 -8 -8 -6 ------- Run | Scr Mat Min Exi Min Mat Sto Rec Fac Robot Analysis Total 1 | . . . . . . . 1 . Derelict Logs Recovered 2 | . . 1 . 1 . . . . Drone Launches . | . . . . . . . . . Drone Recoveries . | . . . . . . . . . Exploration | -11 -10 -10 -10 -9 -8 -8 -8 -6 ------------- Run | Scr Mat Min Exi Min Mat Sto Rec Fac Turns Passed 8177 | 90 946 279 340 583 2047 1190 958 1744 Spaces Moved 4303 | 51 705 259 309 372 930 498 432 747 Core 26 | . . . . . 4 . . 22 Treads 1212 | . . . . 38 167 498 432 77 Legs 13 | 13 . . . . . . . . Wheels 3052 | 38 705 259 309 334 759 . . 648 Hover . | . . . . . . . . . Flight . | . . . . . . . . . Fastest Speed 80 | 80 80 100 100 100 100 180 200 130 Average Speed 151 | 90 96 100 105 129 163 192 200 183 Slowest Speed 1650 | 120 100 100 120 200 1250 240 200 1650 Overloaded Moves . | . . . . . . . . . Propulsion Burnouts . | . . . . . . . . . Robots Hopped . | . . . . . . . . . Cave-ins Triggered . | . . . . . . . . . Exploration Rate (%) 59 | 3 98 60 69 88 57 51 97 14 Regions Visited 8 Branch Regions 5 Pre-discovered Areas 11 | . 2 . 1 . 1 1 6 . Known Exits Taken . | . . . . . . . . . Unknown Exits Taken 8 | 1 1 1 1 1 1 1 1 . Scrap Searched 2 | . . 1 . 1 . . . . Spaces Dug 4 | . . . . . 2 2 . . Terrain Destroyed 142 | . . . . 12 101 2 . 27 Melee 2 | . . . . . . 2 . . Projectile 63 | . . . . 12 47 . . 4 AOE 77 | . . . . . 54 . . 23 Actions | -11 -10 -10 -10 -9 -8 -8 -8 -6 --------- Run | Scr Mat Min Exi Min Mat Sto Rec Fac Total 5453 | 80 858 268 322 434 1308 660 526 997 Wait 441 | . 62 . 7 15 196 66 17 78 Move 4295 | 50 704 258 308 371 929 497 431 747 Hop . | . . . . . . . . . Pick Up 98 | 9 14 1 1 5 30 11 10 17 Fast Attach 41 | 1 3 . . 1 16 9 1 10 Attach 44 | 2 3 . 1 2 14 3 . 19 Detach 12 | 1 . . 1 . 5 . . 5 Swap 42 | . 5 1 . 8 10 7 . 11 Drop 87 | 7 9 2 3 10 27 15 3 11 Fire 291 | 10 58 6 1 21 78 46 1 70 Melee 33 | . . . . . . 5 . 28 Ram 3 | . . . . . 2 . . 1 Kick . | . . . . . . . . . Crush 3 | . . . . 1 1 1 . . Escape Stasis . | . . . . . . . . . Rewire 63 | . . . . . . . 63 . Trap . | . . . . . . . . . Miscellaneous . | . . . . . . . . . Route ------- -11/Scrapyard -10/Materials (discovered 5 exits: [*Mat x3] / *Min x2) -10/Mines (discovered 2 exits: [*Mat] / *Exi) -10/Exiles -9/Mines -8/Materials (discovered 3 exits: [*Fac] / *Sto x2) -8/Storage -8/Recycling -6/Factory History --------- Turn | Location | Event 17 | -11/Scrapyard | Discovered new exit (range 3) 91 | -11/Scrapyard | Entered Materials 228 | -10/Materials | Discovered new exit (range 6) 300 | -10/Materials | Build established: Mutant 349 | -10/Materials | Discovered new exit (range 10) 408 | -10/Materials | Discovered new exit (range 11) 615 | -10/Materials | Discovered new exit (range 5) 845 | -10/Materials | Discovered new exit (range 4) 1037 | -10/Materials | Entered Mines 1125 | -10/Mines | Met a Derelict bent on vengeance 1173 | -10/Mines | Discovered new exit (range 12) 1192 | -10/Mines | Learned Materials garrison access intel 1311 | -10/Mines | Deemed a non-threat by the Exiles lab entrance 1312 | -10/Mines | Discovered new exit (range 5) 1316 | -10/Mines | Entered Exiles 1340 | -10/Exiles | Met 8R-AWN 1357 | -10/Exiles | Met EX-HEX 1402 | -10/Exiles | Met EX-DEC 1418 | -10/Exiles | Learned location of Zion (-6) 1488 | -10/Exiles | Met EX-BIN 1500 | -10/Exiles | Aligned with FarCom system 1501 | -10/Exiles | Given EX-Vault access code 1524 | -10/Exiles | Opened EX-Vault 1536 | -10/Exiles | Found AWS/Autocannon 1562 | -10/Exiles | Warned to stay clear of 0b10 Research branches 1576 | -10/Exiles | Exiles lab attacked by MAIN.C 1636 | -10/Exiles | Attacked by the Exiles 1641 | -10/Exiles | Discovered new exit (range 10) 1656 | -10/Exiles | Left Exiles lab with AWS/Autocannon 1656 | -10/Exiles | Entered Mines 1673 | -9/Mines | Learned Materials interactive machine intel 1703 | -9/Mines | Met a Derelict shopkeep closing up shop 1869 | -9/Mines | Core integrity fell below 50% 2234 | -9/Mines | Discovered new exit (range 5) 2239 | -9/Mines | Entered Materials 2239 | -8/Materials | Evolved 4 slots: Utility x2, Weapon x2 2240 | -8/Materials | Loaded intel: 19 interactive machine locations 2241 | -8/Materials | Loaded intel: 1 garrison access location 2686 | -8/Materials | Discovered new exit (range 14) 2799 | -8/Materials | Build established: Scavenger-Gunner 2899 | -8/Materials | Repaired Gauss Cannon 3160 | -8/Materials | Discovered new exit (range 13) 3720 | -8/Materials | Build established: Scavenger-Mutant 3750 | -8/Materials | Garrison activated, responded to threat 3932 | -8/Materials | Lost 3 parts (1p1n1w) 3960 | -8/Materials | Core integrity fell below 50% 3997 | -8/Materials | Lost 10 parts (2p2n1u5w) 4052 | -8/Materials | Discovered new exit (range 4) 4156 | -8/Materials | Lost 4 parts (1p1n2w) 4247 | -8/Materials | Build established: Hauler-Mutant 4286 | -8/Materials | Entered Storage 4746 | -8/Storage | Core integrity fell below 20% 5163 | -8/Storage | Repaired Imp. Light Armor Plating 5299 | -8/Storage | Used back door to open Recycling access 5299 | -8/Storage | Discovered new exit (range 4) 5374 | -8/Storage | Build established: Hauler-Gunner 5476 | -8/Storage | Entered Recycling 5538 | -8/Recycling | Spotter reported a threat 5540 | -8/Recycling | Spotter reported a threat 5553 | -8/Recycling | Spotter reported a threat 5560 | -8/Recycling | Spotter reported a threat 5560 | -8/Recycling | Spotter reported a threat 5563 | -8/Recycling | Spotter reported a threat 5593 | -8/Recycling | Spotter reported a threat 5606 | -8/Recycling | Spotter reported a threat 5613 | -8/Recycling | Spotter reported a threat 5620 | -8/Recycling | Spotter reported a threat 5621 | -8/Recycling | Spotter reported a threat 5650 | -8/Recycling | Spotter reported a threat 5659 | -8/Recycling | Spotter reported a threat 5667 | -8/Recycling | Spotter reported a threat 5673 | -8/Recycling | Spotter reported a threat 5674 | -8/Recycling | Spotter reported a threat 5682 | -8/Recycling | Spotter reported a threat 5712 | -8/Recycling | Spotter reported a threat 5727 | -8/Recycling | Spotter reported a threat 5741 | -8/Recycling | Spotter reported a threat 5742 | -8/Recycling | Spotter reported a threat 5780 | -8/Recycling | Spotter reported a threat 5780 | -8/Recycling | Spotter reported a threat 5780 | -8/Recycling | Spotter reported a threat 5845 | -8/Recycling | Spotter reported a threat 5870 | -8/Recycling | Spotter reported a threat 5898 | -8/Recycling | Spotter reported a threat 5935 | -8/Recycling | Build established: Commander-Gunner 5947 | -8/Recycling | Spotter reported a threat 5986 | -8/Recycling | Spotter reported a threat 5990 | -8/Recycling | Spotter reported a threat 6024 | -8/Recycling | Spotter reported a threat 6032 | -8/Recycling | Spotter reported a threat 6032 | -8/Recycling | Spotter reported a threat 6077 | -8/Recycling | Spotter reported a threat 6078 | -8/Recycling | Spotter reported a threat 6085 | -8/Recycling | Spotter reported a threat 6092 | -8/Recycling | Spotter reported a threat 6130 | -8/Recycling | Spotter reported a threat 6135 | -8/Recycling | Spotter reported a threat 6135 | -8/Recycling | Spotter reported a threat 6135 | -8/Recycling | Spotter reported a threat 6188 | -8/Recycling | Spotter reported a threat 6188 | -8/Recycling | Spotter reported a threat 6193 | -8/Recycling | Spotter reported a threat 6205 | -8/Recycling | Spotter reported a threat 6240 | -8/Recycling | Spotter reported a threat 6240 | -8/Recycling | Spotter reported a threat 6241 | -8/Recycling | Spotter reported a threat 6258 | -8/Recycling | Spotter reported a threat 6285 | -8/Recycling | Spotter reported a threat 6285 | -8/Recycling | Spotter reported a threat 6285 | -8/Recycling | Spotter reported a threat 6294 | -8/Recycling | Spotter reported a threat 6334 | -8/Recycling | Spotter reported a threat 6334 | -8/Recycling | Spotter reported a threat 6334 | -8/Recycling | Spotter reported a threat 6367 | -8/Recycling | Discovered new exit (range 16) 6434 | -8/Recycling | Entered Factory 6434 | -6/Factory | Accompanied by 6 allies 6434 | -6/Factory | Evolved 4 slots: Utility x4 6802 | -6/Factory | Garrison activated, responded to threat 7036 | -6/Factory | Lost 3 parts (1p1n1w) 7482 | -6/Factory | Core integrity fell below 50% 7484 | -6/Factory | First assault squad dispatched 7552 | -6/Factory | Lost 10 parts (1p2n2u5w) 7677 | -6/Factory | Lost 6 parts (1p2n1u2w) 7764 | -6/Factory | Build established: Hauler-Mutant 8151 | -6/Factory | Core integrity fell below 20% 8178 | -6/Factory | Destroyed by G-50 Soldier with Heavy Laser Last Messages --------------- 08148_ Destroyed Welding Torch. 08148_ Destroyed Wheel. 08148_ ALERT: Construction progress impeded, dispatching reinforcements to local area. 08155_ K-01 Serf collects debris. 08157_ System corrupted: Matter fused (-8). 08158_ K-01 Serf collects debris. 08160_ Imp. Ion Engine destroyed. 08162_ Subcomponent Replicator disabled. 08162_ K-01 Serf collects debris. 08166_ Imp. Heat Sink destroyed. 08167_ K-01 Serf collects debris. 08167_ Destroyed Imp. Heat Sink. 08170_ P-60 Hacker suffers critical hit. 08170_ Destroyed Gravmag System. 08172_ P-60 Hacker suffers critical hit. 08172_ P-60 Hacker destroyed. 08173_ K-01 Serf collects debris. 08176_ Med. Treads destroyed. 08176_ K-01 Serf collects debris. Map ----- +----------------------------------------------------+ | ????????#?#?#??# # !!# """"""" ######### | | #??#??#?################## # ######### | | ?#???#???#### # #############?##?## | | ??????#?????# """ " # ###?#?####?######?? | | ???????#?#?## """ T # #?######?##?####### | | ############# """ " # #####??##??#??# | | ## # #??##?????#?### """ | | """ """ ## # ##?########?### """ | | """ """ ###########+### ############### """ | | """ """ # = + | | # !% # """ | | """ """ " = " """ | | """ """ "=% # """ | | """ """ " = # | | " * ########## # """ | | " # # # """ | | # + %" # """ | | # # # # | | ############ # # ##### | | ???????????# ########## #??#? | | ???????????# #????????#+##+#???? | | ???????????###+####+#+######+###?????????? #???? | | ????????????# !% #????????? ]] #?#?? | | ????????????# #???????# ]] #???? | | ????????????# k g #???????# #???? | | ????????????# """ u ""@ #???????# ! #???? | | ????????????# """"" """"" #???????# ] #???? | | ????????????# """""%"""""g #???????# ######???? | | ????????????# ==%% *%= #???????##?????????? | | ????????????#####/#############??????????????????? | | ???????????????##%##?????????????????????????????? | | ????????????????#%#=#????????????????????????????? | | ????????????????# ##[#???????????????????????????? | | ????????????????# #?##???????????????????????????? | | ????????????????# #??????????????????????????????? | | ????????????????# #??????????????????????????????? | | ????????????????# #??????????????????????????????? | | ????????????????# #??????????????????????????????? | | ????????????????? ???????????????????????????????? | | ????????????????? ???????????????????????????????? | | ????????????????? ???????????????????????????????? | | ????????????????? ???????????????????????????????? | | ????????????????? ???????????????????????????????? | | ????????????????? ???????????????????????????????? | | ????????????????? ???????????????????????????????? | | ?????????????????????????????????????????????????? | | ?????????????????????????????????????????????????? | | ?????????????????????????????????????????????????? | | ?????????????????????????????????????????????????? | | ?????????????????????????????????????????????????? | +----------------------------------------------------+ Best States ------------- Heat Dissipation 51 Energy Generation 18 Energy Capacity 300 Matter Stores 300 Matter Capacity 300 Sight Range 16 Robot Scan Range 16 Terrain Scan Range 24 Terrain Scan Density 110 Jamming Range 12 Armor Coverage 225 Weapon Cycling 15 Evasion (%) 44 Targeting Accuracy 16 Recoil Reduction 2 Item Schematics ----------------- Hcp. Storage Unit | -10/Materials | Hacked Hcp. Matter Pod | -10/Materials | Hacked Hcp. Battery | -10/Materials | Hacked Lrn. Terrain Scanner | -8/Materials | Scanalyzed Mic. Nuclear Core | -8/Materials | Scanalyzed Hacking Suite | -8/Materials | Hacked Imp. Gravmag System | -8/Recycling | Hacked Med. Reactive Plating | -8/Recycling | Hacked Adv. Sensor Array | -8/Recycling | Hacked Robot Schematics ------------------ None Fabricated ------------ Nothing Alien Tech Used ----------------- None Achievements -------------- None Challenges ------------ None Game ------ Seed CatalystAssembledJammer Manual? 0 Play Time 01:24:04 Cumulative 229.2 hours Start 2020.06.22 @ 06:42:27 End 2020.06.22 @ 08:18:43 Sessions 1 Manual Loads 0 Difficulty Rogue Special Mode None Game No. 298 Rogue 287 Adventurer 11 Explorer 0 Win Type - Total 0 Types 0/0/0/0/0/0/0 Lore% 53 Gallery% 66 Achievement% 45 Wizard Run 0 Options --------- ASCII 0 Keyboard 1 Movement Numpad Keybinds 0 Fullscreen 1 Font 12/Terminus Map View 83x54 Tactical HUD 1 Map Filters NONE Filters NONE Steam 1 RUN: 7c5747e8-f3c8-4cd0-9c67-e29762677684